lending/lending_fUSD_20251015
["ID","MTS","AMOUNT","RATE_DAILY","PERIOD"]
[391341224,1760548231919,-227.25998823,0.00014836,2]
[391341225,1760548231930,-221.90372164,0.00014838,2]
[391341226,1760548231942,-221.90372164,0.0001484,2]
[391341227,1760548231953,-222.83701868,0.00014844,2]
[391341228,1760548231964,-29761.17862385,0.00014846,2]
[391341229,1760548231974,-740.42505491,0.00014846,2]
[391341230,1760548231993,-2000.0,0.00014848,2]
[391341231,1760548232003,-2000.0,0.00014848,2]
[391341232,1760548232023,-2000.0,0.00014848,2]
[391341233,1760548232035,-222.83701868,0.00014849,2]
[391341234,1760548232046,-248.2797141,0.00014855,2]
[391341235,1760548232057,-221.90372164,0.00014858,2]
[391341236,1760548232068,-248.2797141,0.00014858,2]
[391341237,1760548232079,-222.12751648,0.0001486,2]
[391341238,1760548232090,-16953.41809799,0.0001486,2]
[391341239,1760548232101,-4007.03833971,0.00014862,2]
[391341240,1760548232123,-3136.83297878,0.00014862,2]
[391341241,1760548232223,-9809.5467795,0.00014862,2]
[391341243,1760548232240,-222.83701868,0.00014865,2]
[391341245,1760548232250,-29761.17862385,0.00014866,2]
[391341247,1760548232261,-222.12751648,0.00014879,2]
[391341249,1760548232272,-227.25998823,0.00014884,2]
[391341250,1760548232282,-227.25998823,0.00014886,2]
[391341252,1760548232292,-222.12751648,0.00014892,2]
[391341254,1760548232303,-693.3919763,0.00014916,2]
[391341256,1760548232314,-277.35679052,0.00014916,2]
[391341257,1760548232325,-300.0,0.00014989,2]
[391341259,1760548232336,-1200.0,0.00014989,2]
[391341261,1760548232346,-300.0,0.00014989,2]
[391341263,1760548232357,-9484.91,0.0001499,2]
[391341265,1760548232368,-150.0,0.00015,2]
[391341267,1760548232378,-2000.0,0.00015068,2]
[391341269,1760548232389,-475.49624517,0.00015199,2]
[391341270,1760548232399,-250.0,0.00015313,2]
[391341272,1760548232410,-322.6107,0.00015313,2]
[391341274,1760548232421,-250.0,0.00015313,2]
[391341276,1760548232431,-250.0,0.00015313,2]
[391341278,1760548232441,-250.0,0.00015313,2]
[391341279,1760548232452,-250.0,0.00015313,2]
[391341281,1760548232463,-250.0,0.00015313,2]
[391341282,1760548232473,-250.0,0.00015313,2]
[391341284,1760548232487,-250.0,0.00015313,2]
[391341285,1760548232498,-250.0,0.00015313,2]
[391341286,1760548232508,-250.0,0.00015313,2]
[391341287,1760548232519,-262.06009032,0.00015313,2]
[391341288,1760548232529,-300.0,0.00015321,2]
[391341289,1760548232541,-2046.0,0.00015322,2]
[391341290,1760548232552,-3400.0,0.00015322,2]
[391341291,1760548232563,-722.0,0.00015322,2]
[391341292,1760548232574,-1264.0,0.00015322,2]
[391341293,1760548232584,-571.0,0.00015322,2]
[391341294,1760548232594,-1309.0,0.00015322,2]
[391341295,1760548232606,-1588.0,0.00015322,2]
[391341296,1760548232616,-604.0,0.00015322,2]
[391341297,1760548232626,-816.0,0.00015322,2]
[391341298,1760548232637,-4014.0,0.00015322,2]
[391341299,1760548232648,-556.0,0.00015322,2]
[391341300,1760548232658,-2330.3336,0.00015397,2]
[391341301,1760548232669,-161.7355971,0.00015402,2]
[391341302,1760548232681,-500.0,0.00015473,2]
[391341303,1760548232691,-7039.3856426,0.0001566,2]
[391341304,1760548232701,-500.0,0.00015747,2]
[391341305,1760548232712,-1600.0,0.00015992,2]
[391341306,1760548232722,-500.0,0.00016021,2]
[391341307,1760548232737,-666.0,0.00016031,3]
[391341308,1760548232747,-150.0,0.00016031,2]
[391341309,1760548232759,-168.0,0.00016034,2]
[391341310,1760548232771,-168.0,0.00016095,2]
[391341311,1760548232782,-2007.27,0.00016116,2]
[391341312,1760548232793,-500.0,0.00016178,2]
[391341313,1760548232804,-500.0,0.00016178,2]
[391341314,1760548232815,-632.0,0.00016178,2]
[391341315,1760548232826,-287.61899177,0.00016285,2]
[391341316,1760548232836,-500.0,0.00016295,2]
[391341317,1760548232847,-420.0,0.00016405,2]
[391341318,1760548232858,-420.0,0.00016405,2]
[391341319,1760548232868,-2108.128,0.00016435,2]
[391341320,1760548232879,-500.0,0.00016438,2]
[391341321,1760548232891,-510.0,0.00016439,2]
[391341322,1760548232902,-158.598,0.0001644,2]
[391341323,1760548232912,-1680.0,0.00016488,2]
[391341324,1760548232923,-500.0,0.00016569,2]
[391341325,1760548232934,-407.87645032,0.00016682,2]
[391341326,1760548232945,-500.0,0.00016843,2]
[391341327,1760548232955,-161.7355971,0.00016942,2]
[391341328,1760548232966,-396.92345591,0.00017,2]
[391341329,1760548232979,-396.92345591,0.00017,2]
[391341330,1760548232994,-808.18,0.00017074,2]
[391341331,1760548233007,-695.07,0.00017074,2]
[391341332,1760548233018,-500.0,0.00017117,2]
[391341333,1760548233030,-396.92345591,0.000172,2]
[391341334,1760548233042,-396.92345591,0.000173,2]
[391341335,1760548233053,-300.0,0.00017341,2]
[391341336,1760548233064,-31305.98039022,0.00017359,2]
[391341337,1760548233075,-150.66,0.00017372,2]
[391341338,1760548233086,-500.0,0.00017391,2]
[391341339,1760548233102,-396.92345591,0.000175,2]
[391341340,1760548233113,-1000.0,0.00017534,2]
[391341341,1760548233124,-207.13523867,0.00017574,2]
[391341342,1760548233134,-866.0,0.00017634,2]
[391341343,1760548233146,-298.26089446,0.00017654,2]
[391341344,1760548233156,-500.0,0.00017665,2]
[391341345,1760548233166,-917.99017303,0.00017882,2]
[391341346,1760548233177,-530.89594702,0.00017882,2]
[391341347,1760548233188,-1000.0,0.00017882,2]
[391341348,1760548233198,-1000.0,0.00017882,2]
[391341349,1760548233209,-500.0,0.00017939,2]
[391341350,1760548233219,-587.0,0.00017954,2]
[391341351,1760548233230,-587.0,0.00017954,2]
[391341352,1760548233243,-1600.0,0.00017991,2]
[391341353,1760548233253,-611.96296656,0.00018,2]
[391341354,1760548233263,-721.06544439,0.00018,2]
[391341355,1760548233273,-247.05727358,0.00018,2]
[391341356,1760548233283,-10044.69474436,0.00018,2]
[391341357,1760548233293,-10044.69474436,0.00018,2]
[391341358,1760548233303,-408.78804632,0.00018,2]
[391341359,1760548233313,-174.90159122,0.00018,2]
[391341360,1760548233323,-198.09186119,0.00018,2]
[391341361,1760548233333,-200.0,0.00018,2]
[391341362,1760548233343,-1000.0,0.00018082,2]
[391341363,1760548233353,-200.0,0.00018101,2]
[391341364,1760548233362,-2351.0,0.00018137,2]
[391341365,1760548233372,-1000.0,0.0001817,2]
[391341366,1760548233382,-168.19,0.00018194,2]
[391341367,1760548233392,-546.55,0.00018194,2]
[391341368,1760548233402,-413.53,0.00018194,2]
[391341369,1760548233413,-168.19,0.00018194,2]
[391341370,1760548233422,-336.33,0.00018194,2]
[391341371,1760548233432,-413.53,0.00018194,2]
[391341372,1760548233441,-546.55,0.00018194,2]
[391341373,1760548233451,-826.5,0.00018194,2]
[391341374,1760548233461,-413.53,0.00018194,2]
[391341375,1760548233470,-413.53,0.00018194,2]
[391341376,1760548233484,-611.96296656,0.000182,2]
[391341377,1760548233495,-721.06544439,0.000182,2]
[391341378,1760548233505,-247.05727358,0.000182,2]
[391341379,1760548233515,-10044.69474436,0.000182,2]
[391341380,1760548233525,-10044.69474436,0.000182,2]
[391341381,1760548233536,-408.78804632,0.000182,2]
[391341382,1760548233547,-2000.0,0.000182,2]
[391341383,1760548233557,-296.0,0.00018209,2]
[391341384,1760548233567,-2000.0,0.0001821,2]
[391341385,1760548233577,-500.0,0.00018213,2]
[391341386,1760548233587,-2000.0,0.0001822,2]
[391341387,1760548233597,-5297.33302596,0.00018222,2]
[391341388,1760548233607,-2159.85484,0.0001823,2]
[391341389,1760548233616,-200.0,0.00018247,2]
[391341390,1760548233626,-3314.85442,0.00018247,2]
[391341391,1760548233636,-571.0,0.00018322,2]
[391341392,1760548233647,-1309.0,0.00018322,2]
[391341393,1760548233657,-1587.0,0.00018322,2]
[391341394,1760548233666,-604.0,0.00018322,2]
[391341395,1760548233677,-816.0,0.00018322,2]
[391341396,1760548233686,-4014.0,0.00018322,2]
[391341397,1760548233697,-556.0,0.00018322,2]
[391341398,1760548233708,-87211.09,0.00018356,2]
[391341399,1760548233718,-382.0,0.0001837,2]
[391341400,1760548233727,-500.0,0.00018373,2]
[391341401,1760548233742,-1000.0,0.00018399,2]
[391341402,1760548233752,-611.96296656,0.000184,2]
[391341403,1760548233762,-721.06544439,0.000184,2]
[391341404,1760548233772,-247.05727358,0.000184,2]
[391341405,1760548233782,-10044.69474436,0.000184,2]
[391341406,1760548233791,-10044.69474436,0.000184,2]
[391341407,1760548233802,-408.78804632,0.000184,2]
[391341408,1760548233816,-9940.8572,0.000184,2]
[391341409,1760548233826,-218.40957322,0.000184,2]
[391341410,1760548233836,-5000.0,0.000184,2]
[391341411,1760548233846,-200.59946092,0.000184,2]
[391341412,1760548233856,-688.50412106,0.000184,2]
[391341413,1760548233866,-309.35975289,0.000184,2]
[391341414,1760548233876,-200.0,0.00018429,2]
[391341415,1760548233886,-500.0,0.00018473,2]
[391341416,1760548233896,-188.9099331,0.00018473,2]
[391341417,1760548233906,-500.0,0.00018473,2]
[391341418,1760548233916,-649.17583818,0.00018473,2]
[391341419,1760548233926,-500.0,0.00018473,2]
[391341420,1760548233942,-161.7355971,0.00018482,2]
[391341421,1760548233959,-500.0,0.00018487,2]
[391341422,1760548233969,-500.0,0.00018499,2]
[391341423,1760548233979,-1000.0,0.00018499,2]
[391341424,1760548233990,-1000.0,0.00018499,2]
[391341425,1760548234000,-430.73607107,0.00018499,2]
[391341426,1760548234010,-241.53264556,0.00018499,2]
[391341427,1760548234019,-581.30292869,0.00018499,2]
[391341428,1760548234032,-358.73096405,0.00018499,2]
[391341429,1760548234054,-189.11568599,0.00018499,2]
[391341430,1760548234072,-373.80082037,0.00018499,2]
[391341431,1760548234083,-161.92522945,0.00018499,2]
[391341432,1760548234094,-629.13320471,0.00018499,2]
[391341433,1760548234104,-500.0,0.00018499,2]
[391341434,1760548234117,-500.0,0.00018499,2]
[391341435,1760548234127,-500.0,0.00018499,2]
[391341436,1760548234136,-500.0,0.00018499,2]
[391341437,1760548234147,-500.0,0.00018499,2]
[391341438,1760548234158,-500.0,0.00018499,2]
[391341439,1760548234168,-500.0,0.00018499,2]
[391341440,1760548234179,-500.0,0.00018499,2]
[391341441,1760548234190,-500.0,0.00018499,2]
[391341442,1760548234200,-500.0,0.00018499,2]
[391341443,1760548234211,-500.0,0.00018499,2]
[391341444,1760548234221,-500.0,0.00018499,2]
[391341445,1760548234231,-500.0,0.00018499,2]
[391341446,1760548234246,-500.0,0.00018499,2]
[391341447,1760548234256,-500.0,0.00018499,2]
[391341448,1760548234267,-500.0,0.00018499,2]
[391341449,1760548234276,-500.0,0.00018499,2]
[391341450,1760548234286,-500.0,0.00018499,2]
[391341451,1760548234297,-500.0,0.00018499,2]
[391341452,1760548234306,-165.68705491,0.00018499,2]
[391341453,1760548234316,-500.0,0.00018499,2]
[391341454,1760548234325,-500.0,0.00018499,2]
[391341455,1760548234336,-500.0,0.00018499,2]
[391341456,1760548234345,-1000.0,0.00018499,2]
[391341457,1760548234355,-1619.26,0.00018499,2]
[391341458,1760548234365,-1749.0,0.000185,2]
[391341459,1760548234374,-57001.8776707,0.000185,2]
[391341463,1760548237863,-1583.0,0.00015322,2]
[391341464,1760548237874,-1241.38238829,0.00017359,2]
[391341465,1760548237886,-919.38,0.00017359,2]
[391341466,1760548238076,-359.49483987,0.00017359,2]
[391341467,1760548238131,-6945.04388918,0.00017359,2]
[391341468,1760548238145,-5581.03507674,0.00017359,2]
[391341469,1760548238158,-2009.61362282,0.00017359,2]
[391341470,1760548238171,-618.07916319,0.00017359,2]
[391341495,1760548239815,-6909.39711325,0.00017359,2]
[391341496,1760548239921,-501.52606715,0.00017359,2]
[391341497,1760548239975,-5734.51708192,0.00017359,2]
[391341498,1760548239985,-1583.0,0.00018322,2]
[391341499,1760548239998,-5.32283153,0.000185,2]
[391341500,1760548240010,-444.00696157,0.000185,2]
[391341501,1760548240029,-3330.07077837,0.000185,2]
[391341502,1760548240137,-302.0,0.000185,2]
[391341505,1760548242927,-1196.383,0.00015672,2]
[391341506,1760548242937,-546.55,0.00018194,2]
[391341507,1760548242947,-279.0,0.00018239,2]
[391341508,1760548242957,-246039.75548167,0.000185,2]
[391341509,1760548243034,-543.26,0.000185,2]
[391341510,1760548243047,-12577.86681655,0.000185,2]
[391341528,1760548245932,-3583.0,0.000185,2]
[391341529,1760548245986,-289.43724252,0.000185,2]
[391341530,1760548246001,-1171.06023156,0.000185,2]
[391341531,1760548246042,-74646.96882025,0.000185,2]
[391341532,1760548246103,-1107.8856,0.000185,2]
[391341536,1760548656981,1000.0,0.00027397,120]
[391341537,1760548668795,500.0,8.219e-05,2]
[391341538,1760548668886,500.0,8.493e-05,2]
[391341539,1760548669369,500.0,8.767e-05,2]
[391341540,1760548669900,500.0,9.041e-05,2]
[391341541,1760548670377,500.0,9.315e-05,2]
[391341542,1760548670883,500.0,9.589e-05,2]
[391341543,1760548671390,500.0,9.863e-05,2]
[391341544,1760548671898,500.0,0.00010137,2]
[391341545,1760548672398,500.0,0.00010411,2]
[391341546,1760548672904,500.0,0.00010685,2]
[391341547,1760548673410,500.0,0.00010959,2]
[391341548,1760548675579,500.0,0.00011233,2]
[391341549,1760548675676,500.0,0.00011781,2]
[391341550,1760548675750,500.0,0.00012055,2]
[391341551,1760548675919,500.0,0.00012329,2]
[391341552,1760548676427,500.0,0.00012603,2]
[391341553,1760548682706,500.0,0.00011507,2]
[391341554,1760548684023,-500.0,0.00012877,2]
[391341555,1760548684047,-54.80829781,0.00013151,2]
[391341556,1760548687199,-308.92491325,0.00013151,2]
[391341557,1760548689323,-136.26678894,0.00013151,2]
[391341558,1760548689348,-15.90481268,0.00013425,2]
[391341559,1760548691299,-184.95604077,0.00013425,2]
[391341560,1760548699978,881.55260224,0.00027397,120]
[391341561,1760548807735,220.0,0.00024313,120]
[391341564,1760549201253,155.47,7.963e-05,2]
[391341565,1760549201465,155.47,9.954e-05,2]
[391341566,1760549201681,155.47,0.00011944,2]
[391341576,1760549381760,204.39593749,0.0001269,2]
[391341589,1760549432034,-299.13914655,0.00013425,2]
[391341590,1760549432044,-500.0,0.00013699,2]
[391341591,1760549432053,-155.47,0.00013935,2]
[391341592,1760549432062,-500.0,0.00013973,2]
[391341593,1760549432073,-300.0,0.00013999,2]
[391341594,1760549432082,-1200.0,0.00013999,2]
[391341595,1760549432092,-300.0,0.00013999,2]
[391341596,1760549432101,-150.0,0.00013999,2]
[391341597,1760549432112,-95939.57833241,0.00014,2]
[391341598,1760549432121,-500.0,0.00014247,2]
[391341599,1760549432131,-500.0,0.00014521,2]
[391341600,1760549432140,-195.0,0.00014767,2]
[391341601,1760549432149,-280.30746584,0.00014767,4]
[391341602,1760549432159,-300.0,0.00014767,2]
[391341603,1760549432168,-250.0,0.00014767,2]
[391341604,1760549432177,-300.0,0.00014767,2]
[391341605,1760549432187,-2087.58540219,0.0001482,2]
[391341606,1760549432197,-6295.17685418,0.0001482,2]
[391341607,1760549432210,-33986.79629189,0.00014824,2]
[391341608,1760549432220,-5859.10916663,0.00014824,2]
[391341609,1760549432232,-2087.58540219,0.00014832,2]
[391341610,1760549432242,-33986.79629189,0.00014833,2]
[391341611,1760549432252,-6295.17685418,0.00014833,2]
[391341612,1760549432262,-6295.17685418,0.00014845,2]
[391341613,1760549432271,-222.90415713,0.00014858,2]
[391341614,1760549432281,-5859.10916663,0.00014867,2]
[391341615,1760549432291,-222.90415713,0.00014868,2]
[391341616,1760549432301,-222.90415713,0.00014872,2]
[391341618,1760549432311,-2087.58540219,0.00014873,2]
[391341620,1760549432320,-10314.43211253,0.00014874,2]
[391341623,1760549432349,-431.9940252,0.00014874,2]
[391341625,1760549438016,-278.82732841,0.00014874,2]
[391341626,1760549438029,-317.98127747,0.00014874,2]
[391341627,1760549438041,-4043.50053931,0.00014874,2]
[391341628,1760549438179,-18600.06100897,0.00014874,2]
[391341629,1760549438190,-5859.10916663,0.0001488,2]
[391341630,1760549438203,-1000.0,0.000149,2]
[391341631,1760549438216,-1000.0,0.000149,2]
[391341632,1760549438227,-11081.00959497,0.00014944,2]
[391341633,1760549438242,-5401.49999901,0.0001499,2]
[391341635,1760549438254,-15837.4740905,0.00015,2]
[391341638,1760549438268,-18947.09915561,0.00015,2]
[391341640,1760549438288,-394.14575585,0.00015,2]
[391341642,1760549438303,-6977.748,0.00015,2]
[391341653,1760549440012,-1105.0,0.00015,2]
[391341654,1760549440024,-167817.19889364,0.00015,2]
[391341655,1760549440034,-23157.2743119,0.00015,2]
[391341656,1760549440044,-255.0,0.00015119,2]
[391341657,1760549440053,-475.49624517,0.00015134,2]
[391341658,1760549440063,-1517.64,0.000153,2]
[391341659,1760549440073,-420.0,0.00015337,2]
[391341660,1760549440082,-420.0,0.00015337,2]
[391341661,1760549440093,-166.66,0.00015337,2]
[391341662,1760549440103,-1680.0,0.00015399,2]
[391341663,1760549440113,-11221.45675007,0.000154,2]
[391341664,1760549440124,-501.62242404,0.000154,2]
[391341665,1760549440135,-277.35679052,0.00015459,2]
[391341666,1760549440145,-161.7355971,0.00015552,2]
[391341667,1760549440154,-4903.97407639,0.00015572,2]
[391341668,1760549440166,-166.66,0.0001566,2]
[391341669,1760549440175,-151.0,0.00015662,2]
[391341670,1760549440185,-183.28498649,0.00015662,2]
[391341671,1760549440195,-151.0,0.00015662,2]
[391341672,1760549440204,-151.0,0.00015662,2]
[391341673,1760549440214,-151.0,0.00015662,2]
[391341674,1760549440224,-151.0,0.00015662,2]
[391341675,1760549440236,-151.0,0.00015662,2]
[391341676,1760549440245,-151.0,0.00015662,2]
[391341677,1760549440256,-151.0,0.00015662,2]
[391341678,1760549440266,-151.0,0.00015662,2]
[391341679,1760549440276,-604.0,0.00015672,2]
[391341680,1760549440286,-816.0,0.00015672,2]
[391341681,1760549440297,-902.0,0.00015672,2]
[391341682,1760549440307,-1182.0,0.00015672,2]
[391341683,1760549440317,-2545.0,0.00015672,2]
[391341684,1760549440328,-1438.945,0.00015672,2]
[391341685,1760549440339,-2049.0,0.00015672,2]
[391341686,1760549440349,-3407.0,0.00015672,2]
[391341687,1760549440358,-749.0,0.00015672,2]
[391341688,1760549440369,-4014.0,0.00015672,2]
[391341689,1760549440378,-168.0,0.00015733,2]
[391341690,1760549440388,-168.0,0.00015752,2]
[391341691,1760549440398,-319.0,0.00015808,2]
[391341692,1760549440407,-227.7793303,0.00015864,2]
[391341693,1760549440418,-168.0,0.00015865,2]
[391341694,1760549440433,-4903.97407632,0.00015885,2]
[391341695,1760549440444,-155.47,0.00015926,2]
[391341696,1760549440455,-166.66,0.00015983,2]
[391341697,1760549440467,-500.0,0.000161,2]
[391341698,1760549440478,-500.0,0.000161,2]
[391341699,1760549440489,-1000.0,0.00016116,2]
[391341700,1760549440504,-760.23,0.00016143,2]
[391341701,1760549440513,-4903.97407632,0.00016198,2]
[391341702,1760549440523,-250.0,0.0001621,7]
[391341703,1760549440533,-166.66,0.00016306,2]
[391341704,1760549440542,-433.0,0.00016323,2]
[391341705,1760549440552,-500.0,0.00016438,30]
[391341707,1760549440561,-500.0,0.00016438,2]
[391341708,1760549440571,-150.0,0.00016438,2]
[391341709,1760549440580,-150.0,0.00016438,30]
[391341710,1760549440590,-470.0,0.00016438,30]
[391341711,1760549440599,-150.0,0.00016438,2]
[391341712,1760549440609,-150.0,0.00016438,30]
[391341713,1760549440619,-150.0,0.00016438,2]
[391341714,1760549440629,-2701.77,0.00016438,30]
[391341715,1760549440639,-500.0,0.00016438,2]
[391341716,1760549440648,-500.0,0.00016493,30]
[391341717,1760549440658,-150.0,0.00016493,30]
[391341718,1760549440668,-470.0,0.00016493,30]
[391341719,1760549440678,-156.15511433,0.00016493,30]
[391341720,1760549440687,-4903.97407632,0.00016511,2]
[391341721,1760549440697,-168.0,0.00016531,2]
[391341722,1760549440706,-500.0,0.00016548,30]
[391341723,1760549440716,-150.0,0.00016548,30]
[391341724,1760549440726,-470.0,0.00016548,30]
[391341725,1760549440738,-500.0,0.00016602,30]
[391341726,1760549440747,-192.40019802,0.00016602,30]
[391341727,1760549440757,-470.0,0.00016602,30]
[391341728,1760549440767,-168.0,0.00016623,2]
[391341729,1760549440776,-5035.36108517,0.00016624,2]
[391341730,1760549440787,-166.66,0.00016629,2]
[391341731,1760549440797,-1000.0,0.00016648,2]
[391341732,1760549440806,-1000.0,0.00016648,2]
[391341733,1760549440815,-500.0,0.00016657,30]
[391341734,1760549440825,-470.0,0.00016657,30]
[391341735,1760549440835,-500.0,0.00016712,30]
[391341736,1760549440845,-470.0,0.00016712,30]
[391341737,1760549440855,-182.8,0.00016712,2]
[391341738,1760549440864,-166.66,0.00016724,2]
[391341739,1760549440874,-458.0,0.00016724,2]
[391341740,1760549440884,-300.0,0.00016724,2]
[391341741,1760549440894,-150.0,0.00016724,2]
[391341742,1760549440904,-500.0,0.00016724,2]
[391341743,1760549440913,-500.0,0.00016724,2]
[391341744,1760549440923,-1667.0,0.00016724,2]
[391341745,1760549440933,-500.0,0.00016724,2]
[391341746,1760549440943,-1483.0,0.00016724,2]
[391341747,1760549440953,-500.0,0.00016724,2]
[391341748,1760549440963,-500.0,0.00016767,30]
[391341749,1760549440972,-470.0,0.00016767,30]
[391341750,1760549440982,-168.0,0.00016771,2]
[391341751,1760549440993,-458.0,0.00016779,2]
[391341752,1760549441003,-300.0,0.00016779,2]
[391341753,1760549441013,-150.0,0.00016779,2]
[391341754,1760549441022,-500.0,0.00016779,2]
[391341755,1760549441032,-500.0,0.00016779,2]
[391341756,1760549441041,-1667.0,0.00016779,2]
[391341757,1760549441052,-500.0,0.00016779,2]
[391341758,1760549441062,-1483.0,0.00016779,2]
[391341759,1760549441072,-500.0,0.00016779,2]
[391341760,1760549441081,-689.53,0.00016801,2]
[391341761,1760549441091,-587.0,0.00016802,2]
[391341762,1760549441100,-587.0,0.00016802,2]
[391341763,1760549441109,-168.0,0.00016814,2]
[391341764,1760549441118,-5035.36108513,0.0001682,2]
[391341765,1760549441127,-266.50401327,0.00016822,30]
[391341766,1760549441137,-470.0,0.00016822,30]
[391341767,1760549441147,-4903.97407632,0.00016824,2]
[391341768,1760549441156,-287.61899177,0.00016828,2]
[391341769,1760549441166,-458.0,0.00016834,2]
[391341770,1760549441175,-300.0,0.00016834,2]
[391341771,1760549441184,-200.82157195,0.00016834,2]
[391341772,1760549441194,-500.0,0.00016834,2]
[391341773,1760549441203,-500.0,0.00016834,2]
[391341774,1760549441213,-1667.0,0.00016834,2]
[391341775,1760549441222,-500.0,0.00016834,2]
[391341776,1760549441231,-1483.0,0.00016834,2]
[391341777,1760549441241,-500.0,0.00016834,2]
[391341778,1760549441251,-168.0,0.00016836,2]
[391341779,1760549441260,-168.0,0.00016838,2]
[391341780,1760549441269,-470.0,0.00016876,30]
[391341781,1760549441279,-458.0,0.00016888,2]
[391341782,1760549441290,-201.4963499,0.00016888,2]
[391341783,1760549441302,-500.0,0.00016888,2]
[391341784,1760549441313,-500.0,0.00016888,2]
[391341785,1760549441323,-1667.0,0.00016888,2]
[391341786,1760549441333,-500.0,0.00016888,2]
[391341787,1760549441342,-1483.0,0.00016888,2]
[391341788,1760549441351,-479.6173567,0.00016888,2]
[391341789,1760549441361,-150.99,0.00016922,2]
[391341790,1760549441371,-470.0,0.00016931,30]
[391341791,1760549441380,-2351.0,0.00016939,2]
[391341792,1760549441391,-458.0,0.00016943,2]
[391341793,1760549441400,-500.0,0.00016943,2]
[391341794,1760549441410,-632.10489482,0.00016943,2]
[391341795,1760549441419,-1667.0,0.00016943,2]
[391341796,1760549441432,-500.0,0.00016943,2]
[391341797,1760549441442,-1483.0,0.00016943,2]
[391341798,1760549441452,-166.66,0.00016951,2]
[391341799,1760549441462,-470.0,0.00016986,30]
[391341800,1760549441473,-458.0,0.00016998,2]
[391341801,1760549441482,-500.0,0.00016998,2]
[391341802,1760549441493,-1667.0,0.00016998,2]
[391341803,1760549441505,-500.0,0.00016998,2]
[391341804,1760549441514,-1483.0,0.00016998,2]
[391341805,1760549441524,-1984.61727957,0.00017,2]
[391341806,1760549441534,-1984.61727957,0.00017,2]
[391341807,1760549441544,-250.0,0.00017,2]
[391341808,1760549441555,-5035.36108513,0.00017016,2]
[391341809,1760549441564,-470.0,0.00017041,30]
[391341810,1760549441574,-458.0,0.00017053,2]
[391341811,1760549441584,-404.07051081,0.00017053,2]
[391341812,1760549441594,-1667.0,0.00017053,2]
[391341813,1760549441603,-500.0,0.00017053,2]
[391341814,1760549441613,-1483.0,0.00017053,2]
[391341815,1760549441623,-168.0,0.00017062,2]
[391341816,1760549441633,-470.0,0.00017096,30]
[391341817,1760549441643,-458.0,0.00017108,2]
[391341818,1760549441653,-1667.0,0.00017108,2]
[391341819,1760549441663,-500.0,0.00017108,2]
[391341820,1760549441672,-1483.0,0.00017108,2]
[391341821,1760549441682,-4903.97407632,0.00017138,2]
[391341822,1760549441691,-470.0,0.0001715,30]
[391341823,1760549441701,-458.0,0.00017162,2]
[391341824,1760549441711,-1667.0,0.00017162,2]
[391341825,1760549441721,-500.0,0.00017162,2]
[391341826,1760549441731,-1483.0,0.00017162,2]
[391341827,1760549441742,-158.598,0.00017182,2]
[391341828,1760549441751,-1500.0,0.00017196,2]
[391341829,1760549441761,-1500.0,0.00017196,2]
[391341830,1760549441771,-1984.61727957,0.000172,2]
[391341831,1760549441780,-1984.61727957,0.000172,2]
[391341832,1760549441791,-1686.502,0.000172,2]
[391341833,1760549441800,-470.0,0.00017205,30]
[391341834,1760549441810,-5035.36108513,0.00017213,2]
[391341835,1760549441820,-458.0,0.00017217,2]